bitfinex-derivatives/quotes_ETHF0:USTF0_20241004
["timestamp","ask_amount","ask_price","bid_price","bid_amount"]
[1728012577386,0.3973,2364.2,2364.1,0.42301]
[1728012577779,0.3973,2364.2,2364.1,0.84921]
[1728012580195,2.0638,2364.4,2364.2,0.42298]
[1728012580196,1.6461,2364.4,2364.2,0.42298]
[1728012580382,1.245,2364.4,2364.3,0.4211]
[1728012580690,3.1608,2364.5,2364.3,0.4211]
[1728012581692,3.1608,2364.5,2364.2,0.42298]
[1728012584591,3.1608,2364.5,2364.1,0.8394]
[1728012584793,3.1608,2364.5,2364.2,0.42298]
[1728012587290,3.1608,2364.5,2364.1,0.8394]
[1728012587488,3.1608,2364.5,2364.3,0.42297]
[1728012588195,1.245,2364.4,2364.1,0.423]
[1728012588390,1.52,2364.3,2364.1,0.8518]
[1728012588896,1.52,2364.3,2364.1,0.4288]
[1728012589098,0.3929,2364.2,2364.1,0.4288]
[1728012589997,0.3929,2364.2,2364.1,0.85181]
[1728012590589,1.245,2364.5,2364.3,0.42297]
[1728012590785,3.1716,2364.5,2364.2,0.42298]
[1728012593503,0.4066,2364.5,2364.4,0.42296]
[1728012594302,0.4066,2364.5,2364.1,6.26306255]
[1728012594495,1.9266,2364.5,2364.3,0.42296]
[1728012594697,1.9266,2364.5,2364.4,0.3891]
[1728012594899,1.9266,2364.5,2364.4,1.23916]
[1728012595300,1.9266,2364.5,2364.4,0.8162]
[1728012598400,1.9266,2364.5,2364.2,0.42298]
[1728012598603,1.52,2364.3,2364.2,0.82098]
[1728012598804,1.52,2364.3,2364.2,1.21908]
[1728012599001,1.52,2364.3,2364.2,5.44868]
[1728012599497,1.52,2364.3,2364.2,1.21908]
[1728012599703,1.52,2364.3,2364.2,5.44868]
[1728012600507,1.9266,2364.5,2364.2,5.44868]
[1728012600702,1.9266,2364.5,2364.2,1.21908]
[1728012601207,1.9266,2364.5,2364.3,0.42297]
[1728012606818,0.4066,2364.5,2364.4,0.42296]
[1728012607020,3.2078,2364.8,2364.4,0.42296]
[1728012607021,0.098,2364.9,2364.8,0.42288]
[1728012607231,0.8342,2365.0,2364.8,0.42288]
[1728012607521,0.8342,2365.0,2364.5,6.67309587]
[1728012607522,0.8342,2365.0,2364.6,1.10939587]
[1728012607719,0.8342,2365.0,2364.9,0.42287]
[1728012607720,0.4169,2365.0,2364.9,0.42287]
[1728012608716,0.4169,2365.0,2364.9,0.82727]
[1728012610329,2.751,2365.2,2364.9,0.82727]
[1728012610516,3.1573,2365.2,2364.9,0.82727]
[1728012610710,3.1573,2365.2,2364.9,0.4044]
[1728012610921,1.52,2365.1,2364.8,0.81167]
[1728012611123,1.52,2365.1,2364.8,0.3888]
[1728012611623,1.52,2364.9,2364.5,3.2078]
[1728012611814,1.52,2364.9,2364.2,4.04378]
[1728012611815,1.94292,2364.6,2364.2,4.04378]
[1728012612023,1.52,2364.3,2364.2,3.2078]
[1728012613426,1.52,2364.3,2364.2,3.63079]
[1728012613625,2.3124,2364.5,2364.2,3.2078]
[1728012613821,2.3124,2364.5,2364.3,0.42297]
[1728012614029,0.4013,2364.5,2364.4,0.42296]
[1728012615318,0.4013,2364.5,2364.3,0.413]
[1728012615533,0.4013,2364.5,2364.3,0.83597]
[1728012617226,1.91,2364.8,2364.4,1.52]
[1728012617529,1.91,2364.8,2364.5,0.42293]
[1728012617530,0.4233,2364.7,2364.5,0.42293]
[1728012617822,0.4233,2364.7,2364.4,1.9346]
[1728012617823,0.4233,2364.7,2364.4,2.35755]
[1728012619122,0.4233,2364.7,2364.4,0.83755]
[1728012619525,0.4233,2364.7,2364.5,0.42293]
[1728012619824,0.4233,2364.7,2364.6,0.42292]
[1728012620030,0.098,2365.2,2364.9,0.42286]
[1728012620231,0.8236,2365.1,2364.8,0.42287]
[1728012621231,1.52,2365.0,2364.7,0.3884]
[1728012621528,1.52,2365.0,2364.7,0.81129]
[1728012622326,1.52,2365.0,2364.7,0.3884]
[1728012622527,1.52,2365.0,2364.8,0.42288]
[1728012625137,1.52,2365.0,2364.9,0.42287]
[1728012625729,0.8236,2365.1,2364.9,0.42287]
[1728012626334,0.8236,2365.1,2365.0,0.3989]
[1728012626828,0.4233,2365.1,2365.0,0.82175]
[1728012627036,1.316,2365.3,2365.0,0.3989]
[1728012627343,2.3492,2365.4,2365.0,0.3989]
[1728012627536,0.8292,2365.4,2365.3,0.4228]
[1728012627842,0.8292,2365.4,2365.1,1.9359]
[1728012628030,0.8292,2365.4,2365.2,0.42281]
[1728012629333,0.8292,2365.4,2365.1,1.9359]
[1728012629642,2.3492,2365.4,2365.1,0.83872]
[1728012629843,2.3492,2365.4,2365.1,0.4159]
[1728012630043,2.3492,2365.4,2365.2,0.42281]
[1728012630334,2.3492,2365.4,2365.1,0.4159]
[1728012630535,0.8292,2365.4,2365.2,0.42281]
[1728012630742,1.315,2365.6,2365.2,0.42281]
[1728012630743,3.32503212,2365.9,2365.2,6.1728]
[1728012630936,0.8441,2365.8,2365.4,1.52]
[1728012631138,0.8441,2365.8,2365.5,0.4174]
[1728012631339,2.3641,2365.8,2365.5,0.4174]
[1728012633643,2.3641,2365.8,2365.3,1.9449]
[1728012633644,0.8441,2365.8,2365.1,3.2078]
[1728012633841,1.52,2365.5,2365.1,0.42282]
[1728012634038,1.2576,2365.4,2365.1,0.42282]
[1728012634748,1.52,2365.3,2364.9,1.2051]
[1728012634952,1.52,2365.3,2365.1,0.42283]
[1728012635154,1.2576,2365.4,2365.0,1.52]
[1728012635336,1.2576,2365.4,2365.2,0.42281]
[1728012635741,1.2576,2365.4,2365.3,0.4221]
[1728012636040,0.8528,2365.4,2365.3,0.8128]
[1728012636442,0.8528,2365.4,2365.3,1.2356]
[1728012637148,6.6008,2365.4,2365.0,0.42284]
[1728012637349,2.79558,2365.4,2365.0,0.84494]
[1728012638546,2.79558,2365.4,2365.0,0.4221]
[1728012638854,2.79558,2365.4,2365.0,0.84494]
[1728012639450,2.3728,2365.4,2365.0,0.84494]
[1728012639646,0.8528,2365.4,2365.0,0.84494]
[1728012639842,1.27558,2365.4,2365.0,0.84494]
[1728012640143,0.8528,2365.4,2365.0,0.4221]
[1728012640341,0.4228,2365.3,2364.9,0.42285]
[1728012640546,0.4057,2365.2,2364.9,0.3886]
[1728012640944,0.4254,2365.1,2364.9,0.3886]
[1728012641146,0.4232,2365.0,2364.9,0.3886]
[1728012641346,0.4232,2365.0,2364.9,0.81147]
[1728012642146,0.4232,2365.0,2364.9,0.42287]
[1728012642351,0.4232,2365.0,2364.8,4.0155]
[1728012642352,0.4232,2365.0,2364.8,3.5985]
[1728012642648,0.4232,2365.0,2364.8,3.2078]
[1728012643746,0.4232,2365.0,2364.8,3.63067]
[1728012643950,0.4232,2365.0,2364.9,0.4104]
[1728012644941,0.4232,2365.0,2364.9,0.83327]
[1728012645147,0.4254,2365.1,2364.9,1.23297]
[1728012645348,0.4254,2365.1,2364.9,0.8101]
[1728012645547,0.4043,2365.0,2364.9,0.8101]
[1728012646557,0.4043,2365.0,2364.9,1.23297]
[1728012646743,0.4043,2365.0,2364.9,0.8101]
[1728012648756,0.4043,2365.0,2364.9,0.3997]
[1728012649454,0.4254,2365.1,2364.9,0.3997]
[1728012652358,3.7254,2365.1,2364.9,0.3997]
[1728012652558,7.9534,2365.1,2364.7,0.401]
[1728012652757,3.7254,2365.1,2364.7,0.401]
[1728012652957,0.42285,2365.0,2364.7,0.401]
[1728012653954,4.14824,2365.1,2364.7,0.401]
[1728012655865,3.7254,2365.1,2364.7,0.82389]
[1728012656065,1.7404,2365.1,2364.9,0.42286]
[1728012656359,1.7404,2365.1,2364.8,0.42287]
[1728012656565,1.7404,2365.1,2364.9,0.3959]
[1728012656757,0.4254,2365.1,2364.9,0.3959]
[1728012657864,0.4254,2365.1,2364.8,0.42287]
[1728012658165,0.4254,2365.1,2364.7,0.793]
[1728012658360,0.4254,2365.1,2364.8,0.42288]
[1728012661057,0.4254,2365.1,2364.7,0.793]
[1728012661265,0.4254,2365.1,2364.8,0.42287]
[1728012661467,0.4254,2365.1,2364.7,0.793]
[1728012661665,0.4254,2365.1,2365.0,0.42285]
[1728012662861,0.4254,2365.1,2364.8,0.42288]
[1728012663169,0.4254,2365.1,2364.9,0.42287]
[1728012663556,0.4254,2365.1,2365.0,0.3967]
[1728012666271,0.4254,2365.1,2365.0,0.81955]
[1728012666464,5.739,2365.5,2365.0,6.1447]
[1728012666670,1.7386,2365.4,2365.1,0.8106]
[1728012666880,1.7386,2365.4,2365.2,0.4228]
[1728012667074,1.7386,2365.4,2365.1,1.23342]
[1728012667278,1.7386,2365.4,2365.1,0.8106]
[1728012667573,1.7386,2365.4,2365.1,1.23342]
[1728012668274,0.4236,2365.4,2365.2,0.42281]
[1728012668475,0.4236,2365.4,2365.1,1.23342]
[1728012669674,0.4236,2365.4,2365.1,0.8106]
[1728012669867,0.4236,2365.4,2365.2,0.4228]
[1728012670773,0.4236,2365.4,2365.3,0.4287]
[1728012672073,2.36638,2365.4,2365.1,0.8106]
[1728012672266,1.94281,2365.2,2364.8,0.42287]
[1728012672470,1.52,2365.0,2364.7,1.26819]
[1728012673465,1.52,2365.0,2364.7,0.8453]
[1728012673670,1.52,2365.0,2364.7,1.26819]
[1728012673871,1.52,2365.0,2364.8,0.42288]
[1728012675874,1.52,2365.0,2364.9,0.42287]
[1728012676074,1.1785,2365.1,2364.9,0.42287]
[1728012678978,1.1785,2365.1,2364.8,0.42287]
[1728012679181,1.52,2365.0,2364.8,0.42287]
[1728012679484,1.52,2365.0,2364.7,0.8453]
[1728012679674,1.52,2365.0,2364.9,0.42287]
[1728012680981,1.1785,2365.1,2364.9,0.42287]
[1728012681680,1.1785,2365.1,2365.0,0.42285]
[1728012681681,0.3895,2365.1,2365.0,0.42285]
[1728012681884,0.3895,2365.1,2365.0,1.24465]
[1728012684677,0.3895,2365.1,2365.0,0.8218]
[1728012684878,0.3895,2365.1,2365.0,1.24465]
[1728012685085,4.6175,2365.1,2364.8,0.42287]
[1728012685381,2.326,2365.0,2364.8,0.42287]
[1728012685990,2.326,2365.0,2364.9,0.42287]
[1728012686693,0.387,2365.0,2364.9,0.42287]
[1728012686890,0.3895,2365.1,2365.0,0.42285]
[1728012687084,0.3895,2365.1,2365.0,1.24175]
[1728012688788,0.3895,2365.1,2365.0,0.3918]
[1728012689191,0.3895,2365.1,2364.9,0.42287]
[1728012691197,0.3895,2365.1,2364.8,1.22367]
[1728012691590,1.52,2365.0,2364.8,0.3914]
[1728012691893,0.4249,2364.9,2364.8,0.3914]
[1728012694698,0.4249,2364.9,2364.7,1.53079587]
[1728012694699,0.4249,2364.9,2364.7,0.4214]
[1728012694997,1.9184,2364.8,2364.7,0.4214]
[1728012695298,1.9184,2364.8,2364.5,3.2078]
[1728012695485,1.9184,2364.8,2364.5,4.04413]
[1728012695486,1.52,2364.7,2364.5,4.04413]
[1728012697494,1.52,2364.7,2364.5,3.6212]
[1728012697800,1.52,2364.7,2364.5,4.04414]
[1728012698000,1.52,2364.7,2364.5,0.4134]
[1728012698299,0.3984,2364.8,2364.5,0.4134]
[1728012698488,3.3058,2365.2,2364.7,1.52]
[1728012698794,1.376,2365.1,2364.9,0.42286]
[1728012699091,0.822,2365.3,2365.0,1.9323]
[1728012699292,1.52,2365.6,2365.3,0.42279]
[1728012699491,1.376,2365.6,2365.4,1.25198]
[1728012699798,0.8324,2365.7,2365.4,1.25197]
[1728012700008,0.8324,2365.7,2365.4,0.8292]
[1728012700194,2.2084,2365.7,2365.4,1.25198]
[1728012700385,2.2084,2365.7,2365.4,0.8292]
[1728012702692,1.376,2365.6,2365.4,0.8292]
[1728012703094,0.8324,2365.7,2365.4,0.8292]
[1728012703296,1.7976,2365.7,2365.4,0.8292]
[1728012703497,0.4216,2365.7,2365.4,1.25196]
[1728012704504,5.0667,2365.9,2365.6,0.42273]
[1728012704812,1.7667,2365.9,2365.7,0.42272]
[1728012705101,1.376,2366.0,2365.8,0.8167]
[1728012705293,0.787,2366.1,2365.8,0.8167]
[1728012705495,1.376,2366.0,2365.8,0.8167]
[1728012706606,0.787,2366.1,2365.8,0.8167]
[1728012706809,2.163,2366.1,2365.8,0.8167]
[1728012708410,0.787,2366.1,2365.8,0.8167]
[1728012708719,2.163,2366.1,2365.8,0.8167]
[1728012710601,2.58565,2366.1,2365.8,0.8167]
[1728012710808,2.163,2366.1,2365.8,0.8167]
[1728012711500,2.58566,2366.1,2365.8,0.8167]
[1728012712108,5.463,2366.1,2365.7,0.4162]
[1728012712303,0.4227,2365.9,2365.5,0.8321]
[1728012712702,0.4227,2365.9,2365.5,1.2458]
[1728012716113,1.349,2366.0,2365.5,1.2458]
[1728012716315,1.77168,2366.0,2365.5,1.2458]
[1728012717109,1.349,2366.0,2365.5,1.2458]
[1728012717310,1.77168,2366.0,2365.5,1.66856]
[1728012718816,1.77168,2366.0,2365.5,1.2458]
[1728012719713,1.77168,2366.0,2365.5,1.66855]
[1728012720514,0.42269,2365.9,2365.5,1.2458]
[1728012720915,0.4253,2365.8,2365.5,1.2458]
[1728012721113,0.4076,2365.7,2365.5,1.2458]
[1728012721418,0.8282,2365.7,2365.5,0.8321]
[1728012722315,0.8282,2365.7,2365.5,1.25485]
[1728012723019,0.8282,2365.7,2365.6,0.42274]
[1728012723624,0.8282,2365.7,2365.5,0.8321]
[1728012723829,0.8282,2365.7,2365.5,1.25485]
[1728012724128,0.8282,2365.7,2365.6,0.42274]
[1728012724311,0.4206,2365.7,2365.6,0.42274]
[1728012725720,0.52062,2366.3,2365.9,0.42269]
[1728012725919,0.52062,2366.3,2366.0,0.4141]
[1728012725920,1.349,2366.1,2366.0,0.4141]
[1728012726121,1.349,2366.1,2366.0,0.8159]
[1728012726527,2.1806,2366.2,2366.0,1.23856]
[1728012726725,0.8316,2366.2,2366.1,0.3955]
[1728012727237,0.8316,2366.2,2366.0,0.8159]
[1728012732726,0.8316,2366.2,2365.8,0.4227]
[1728012733437,0.8316,2366.2,2365.7,0.838]
[1728012733625,0.4227,2365.9,2365.6,3.2078]
[1728012733826,1.233,2365.8,2365.5,0.4106]
[1728012734128,4.533,2365.8,2365.5,0.4106]
[1728012734432,4.533,2365.8,2365.4,1.24127]
[1728012734830,4.533,2365.8,2365.5,0.42276]
[1728012735332,4.533,2365.8,2365.5,0.4106]
[1728012735543,1.233,2365.8,2365.5,0.4106]
[1728012736026,0.4202,2365.8,2365.6,0.42274]
[1728012736832,0.4202,2365.8,2365.5,0.4106]
[1728012740745,0.4202,2365.8,2365.6,0.42274]
[1728012740932,0.4202,2365.8,2365.5,0.4106]
[1728012741332,0.4202,2365.8,2365.5,0.83336]
[1728012741529,1.7002,2365.8,2365.5,0.83336]
[1728012742136,1.7002,2365.8,2365.5,0.4106]
[1728012743133,1.7002,2365.8,2365.5,0.83336]
[1728012748248,1.7002,2365.8,2365.5,0.4106]
[1728012748641,1.7002,2365.8,2365.5,0.83336]
[1728012750242,3.2202,2365.8,2365.4,0.8185]
[1728012750439,1.52,2365.6,2365.4,0.4274]
[1728012750644,0.3885,2365.5,2365.4,0.4274]
[1728012750840,0.7883,2365.5,2365.4,0.4274]
[1728012751241,0.7883,2365.5,2365.4,0.85018]
[1728012751448,0.7883,2365.5,2365.4,1.25018]
[1728012752247,1.28,2365.7,2365.5,0.42275]
[1728012752544,1.28,2365.7,2365.5,0.81976]
[1728012757048,1.28,2365.7,2365.5,2.33976]
[1728012757352,2.1107,2365.8,2365.6,0.42273]
[1728012757849,2.1107,2365.8,2365.7,0.4227]
[1728012758451,0.8307,2365.8,2365.7,0.4227]
[1728012758644,2.1107,2365.8,2365.7,0.4227]
[1728012759450,1.6867,2365.8,2365.7,0.4227]
[1728012763855,5.9139,2365.8,2365.4,0.4274]
[1728012764052,0.42275,2365.6,2365.4,0.4274]
[1728012764351,1.9344,2365.5,2365.4,0.4274]
[1728012764557,2.3298,2365.5,2365.4,0.4274]
[1728012765560,0.8098,2365.5,2365.4,0.4274]
[1728012767656,0.8098,2365.5,2365.4,0.85018]
[1728012768056,0.8098,2365.5,2365.4,0.4274]
[1728012781465,5.037,2365.5,2365.2,0.8207]
[1728012781665,5.037,2365.5,2365.0,3.2078]
[1728012781666,1.52,2365.3,2365.0,3.2078]
[1728012781973,4.0176,2365.5,2365.0,3.2078]
[1728012781974,2.75257,2365.5,2365.1,0.42283]
[1728012782168,2.75257,2365.5,2365.2,0.3985]
[1728012785771,2.3298,2365.5,2365.2,0.3985]
[1728012786376,2.75257,2365.5,2365.2,0.3985]
[1728012786968,1.52,2365.3,2364.9,0.8105]
[1728012787168,1.52,2365.1,2364.9,0.3987]
[1728012787475,0.4136,2365.0,2364.9,0.3987]
[1728012787670,0.4136,2365.0,2364.7,0.4146]
[1728012787671,2.08246,2365.0,2364.7,0.4146]
[1728012787979,1.9256,2364.9,2364.7,0.4146]
[1728012788371,2.34847,2364.9,2364.7,0.4146]
[1728012788676,1.9256,2364.9,2364.7,0.4146]
[1728012789570,1.9256,2364.9,2364.6,0.4155]
[1728012789777,0.409,2364.8,2364.5,0.4016]
[1728012791279,0.409,2364.8,2364.6,0.42292]
[1728012791476,0.409,2364.8,2364.5,0.82453]
[1728012794078,0.409,2364.8,2364.5,0.4016]
[1728012794277,1.52,2364.7,2364.5,0.4016]
[1728012794677,0.3912,2364.6,2364.5,0.4016]
[1728012797273,0.8202,2364.6,2364.5,0.4016]
[1728012797683,6.569,2364.6,2364.4,0.3897]
[1728012797981,2.76312,2364.6,2364.1,0.423]
[1728012798171,2.76312,2364.6,2364.0,0.82882]
[1728012798172,1.52,2364.3,2364.0,0.82882]
[1728012798371,2.79,2364.3,2364.0,0.4058]
[1728012798572,0.8516,2364.2,2364.0,0.4058]
[1728012798772,1.52,2364.1,2364.0,0.4058]
[1728012798984,0.4226,2364.2,2364.1,0.42301]
[1728012799178,0.4226,2364.2,2364.0,0.82882]
[1728012800680,0.4226,2364.2,2364.0,0.4058]
[1728012801179,1.27,2364.3,2364.2,0.42299]
[1728012801878,1.27,2364.3,2364.0,2.34882]
[1728012805288,1.271,2364.3,2364.0,2.34882]
[1728012805887,1.9106,2364.4,2364.1,0.42301]
[1728012806188,1.271,2364.3,2364.1,0.42301]
[1728012806391,1.271,2364.3,2364.2,0.4162]
[1728012807982,2.791,2364.3,2364.2,0.4162]
[1728012808291,7.44359,2364.3,2364.0,0.822]
[1728012808486,4.7278,2364.1,2363.4,3.2078]
[1728012808692,0.42306,2363.9,2363.5,0.3967]
[1728012808891,0.42314,2363.4,2362.9,0.212]
[1728012809195,1.52,2363.0,2362.9,0.4042]
[1728012810193,1.52,2363.0,2362.2,0.42335]
[1728012810385,1.52,2362.7,2362.5,0.4042]
[1728012811481,3.72898,2363.2,2362.5,0.4042]
[1728012811482,3.3,2363.0,2362.5,0.4042]
[1728012811682,3.3058,2363.2,2362.5,0.82749]
[1728012811683,1.388,2362.9,2362.5,0.82749]
[1728012811882,3.3,2363.1,2362.5,0.4042]
[1728012812091,3.3,2363.1,2362.6,0.42327]
[1728012812393,3.3,2363.1,2362.7,0.42325]
[1728012812394,1.388,2363.0,2362.7,0.42325]
[1728012812596,1.388,2363.0,2362.5,0.4042]
[1728012812988,1.388,2363.0,2362.8,0.42323]
[1728012813390,1.388,2363.0,2362.9,0.393]
[1728012813684,1.388,2363.0,2362.9,0.81622]
[1728012814299,1.388,2363.0,2362.9,0.393]
[1728012814990,1.388,2363.0,2362.5,0.82749]
[1728012815287,1.388,2363.0,2362.6,0.42328]
[1728012815595,3.3,2362.9,2362.6,0.42328]
[1728012816792,3.3,2362.7,2362.5,0.8301]
[1728012818386,3.3,2362.7,2362.5,0.4042]
[1728012819593,3.3,2362.7,2362.5,0.82749]
[1728012819785,1.459,2362.7,2362.5,0.82749]
[1728012821687,1.459,2362.7,2362.5,0.4042]
[1728012822294,1.459,2362.7,2362.5,0.8275]
[1728012823089,0.7931,2362.8,2362.5,0.4042]
[1728012823285,0.4011,2362.8,2362.7,0.42326]
[1728012823499,7.4268,2363.2,2363.0,0.4232]
[1728012823693,7.4268,2363.2,2362.7,4.232]
[1728012823694,9.2115,2363.2,2362.8,0.42323]
[1728012823897,3.3,2363.1,2362.8,0.42323]
[1728012824088,4.759,2363.1,2362.9,0.42321]
[1728012824289,7.7525,2363.2,2363.0,0.42319]
[1728012824290,6.0037,2363.2,2363.0,0.42319]
[1728012824592,4.5447,2363.2,2363.0,0.42319]
[1728012824794,6.0037,2363.2,2362.9,0.42322]
[1728012825787,4.5447,2363.2,2363.0,0.42321]
[1728012826096,6.0037,2363.2,2363.0,0.42321]
[1728012826297,6.0037,2363.2,2362.9,0.42321]
[1728012826498,4.5447,2363.2,2363.0,0.399]
[1728012826696,4.5447,2363.2,2363.1,0.42319]
[1728012827608,1.8544,2363.4,2363.0,0.399]
[1728012827897,1.459,2363.4,2363.2,0.42316]
[1728012828108,1.459,2363.5,2363.0,3.6068]
[1728012828402,1.459,2363.5,2363.3,0.42315]
[1728012828996,1.459,2363.5,2363.2,0.42316]
[1728012829196,1.459,2363.5,2363.3,0.42315]
[1728012829595,1.459,2363.5,2363.0,3.6068]
[1728012829802,1.459,2363.5,2363.2,0.42316]
[1728012830000,3.3,2363.3,2363.0,4.03]
[1728012830197,3.3,2363.3,2363.0,0.82219]
[1728012830403,3.3,2363.3,2363.1,0.42318]
[1728012831094,3.6876,2363.3,2363.1,0.42318]
[1728012831399,3.6876,2363.3,2363.0,0.399]
[1728012831700,0.3943,2363.2,2363.0,0.399]
[1728012831900,3.6943,2363.2,2362.8,0.84683]
[1728012832405,3.6943,2363.2,2362.8,0.4236]
[1728012832606,3.6943,2363.2,2362.9,0.42322]
[1728012832797,3.6943,2363.2,2362.9,0.42321]
[1728012834501,3.6943,2363.2,2362.9,0.42322]
[1728012835002,4.11748,2363.2,2362.8,0.84684]
[1728012835807,3.6943,2363.2,2362.8,0.84684]
[1728012840802,0.3963,2362.9,2362.6,0.42327]
[1728012842001,0.4284,2362.8,2362.6,0.42327]
[1728012843600,1.7823,2362.9,2362.5,0.4116]
[1728012843807,1.7823,2362.9,2362.8,0.42324]
[1728012844299,3.6943,2363.2,2363.0,0.42321]
[1728012844501,0.114,2363.6,2363.0,3.2078]
[1728012844502,3.3,2363.5,2363.0,3.2078]
[1728012844807,3.3,2363.5,2363.4,0.42314]
[1728012845395,5.0906,2363.7,2363.5,0.42311]
[1728012845594,5.0906,2363.7,2363.6,0.8296]
[1728012845595,3.7046,2363.7,2363.6,0.8296]
[1728012845799,3.3,2363.7,2363.6,0.8296]
[1728012846003,1.386,2363.8,2363.6,0.8296]
[1728012846505,3.3,2363.9,2363.6,0.4065]
[1728012846808,3.3,2363.9,2363.8,0.42306]
[1728012847006,4.686,2363.9,2363.7,0.42307]
[1728012848106,3.3,2363.9,2363.7,0.42307]
[1728012848510,3.3,2363.9,2363.6,0.4065]
[1728012848705,0.098,2364.2,2363.6,7.8447]
[1728012848908,1.484,2364.2,2363.6,6.9143]
[1728012849204,1.484,2364.2,2363.9,0.42304]
[1728012849398,1.386,2364.2,2363.9,0.42304]
[1728012849913,3.3,2364.1,2363.7,0.42308]
[1728012850100,3.3,2364.1,2363.8,0.42306]
[1728012850307,1.386,2364.2,2363.7,0.42307]
[1728012850308,3.3,2363.9,2363.7,0.42307]
[1728012851304,3.3,2363.9,2363.6,4.0374]
[1728012852211,3.3,2363.7,2363.6,3.6143]
[1728012852604,3.3,2363.7,2363.6,3.2078]
[1728012852809,3.3,2363.7,2363.4,0.4267]
[1728012853116,3.3,2363.5,2363.3,3.63094]
[1728012853319,3.3,2363.5,2363.3,3.2078]
[1728012853619,3.3,2363.5,2363.4,0.42314]
[1728012853806,3.3,2363.7,2363.5,0.42311]
[1728012854008,2.1953,2363.8,2363.6,0.42308]
[1728012854513,0.4158,2363.8,2363.7,0.42308]
[1728012854815,0.4158,2363.8,2363.3,3.2078]
[1728012855116,0.4158,2363.8,2363.6,0.42309]
[1728012855509,0.4158,2363.8,2363.5,0.42311]
[1728012855712,0.4158,2363.8,2363.6,0.4231]
[1728012856015,1.8018,2363.8,2363.6,0.4231]
[1728012856923,1.8018,2363.8,2363.3,3.2078]
[1728012856924,1.8018,2363.8,2363.5,0.42311]
[1728012863615,0.3935,2364.1,2363.4,0.4253]
[1728012863616,3.3058,2364.2,2363.9,0.42304]
[1728012863923,4.5938,2364.2,2364.0,0.42301]
[1728012864127,4.5938,2364.2,2364.1,0.4024]
[1728012865118,3.2078,2364.2,2364.1,0.4024]
[1728012866213,3.7029,2364.3,2364.1,0.4024]
[1728012868721,3.7029,2364.3,2364.1,0.82541]
[1728012870720,3.7029,2364.3,2364.1,0.4024]
[1728012871813,3.7029,2364.3,2364.1,0.8254]
[1728012873025,0.4029,2364.3,2364.1,0.8254]
[1728012874025,4.0904,2364.5,2364.2,0.42298]
[1728012874229,4.0904,2364.5,2364.3,0.408]
[1728012883933,4.0904,2364.5,2364.1,0.8254]
[1728012885527,1.52,2364.4,2364.1,0.8254]
[1728012886628,1.52,2364.4,2364.2,0.42299]
[1728012889941,1.52,2364.4,2364.3,0.42297]
[1728012890142,1.52,2364.4,2364.1,0.4024]
[1728012890143,1.52,2364.4,2364.2,0.42298]
[1728012890943,2.0694,2364.5,2364.3,0.42297]
[1728012891547,2.0694,2364.5,2364.3,0.82467]
[1728012891736,2.0694,2364.5,2364.3,0.4017]
[1728012893236,6.17256,2364.4,2364.0,3.63082]
[1728012893431,1.52,2364.3,2364.0,0.42302]
[1728012893936,0.4087,2364.2,2364.0,0.42302]
[1728012894137,0.4087,2364.2,2363.9,0.42303]
[1728012894345,0.4054,2364.1,2364.0,0.42303]
[1728012894843,0.4087,2364.2,2364.0,0.42303]
[1728012895042,0.8141,2364.2,2364.0,0.42303]
[1728012896237,0.8141,2364.2,2363.8,1.219]
[1728012896434,0.8141,2364.2,2364.1,0.42301]
[1728012897136,0.8141,2364.2,2363.8,1.219]
[1728012897339,0.8141,2364.2,2363.9,0.42305]
[1728012897538,0.8141,2364.2,2364.0,0.42301]
[1728012899049,0.8141,2364.2,2364.1,0.42301]
[1728012900744,0.8141,2364.2,2363.9,0.42303]
[1728012900940,1.9267,2364.1,2363.9,0.42303]
[1728012901145,1.9267,2364.1,2363.8,1.23935]
[1728012901539,1.9267,2364.1,2363.8,0.8163]
[1728012901743,1.52,2363.9,2363.7,0.42306]
[1728012901938,1.9267,2364.1,2363.6,3.2078]
[1728012902139,0.4087,2364.2,2363.8,1.52]
[1728012902444,0.4087,2364.2,2364.1,0.42301]
[1728012903348,0.4087,2364.2,2363.9,4.4318]
[1728012903845,0.4087,2364.2,2364.1,0.42301]
[1728012904049,0.4087,2364.2,2363.9,4.4318]
[1728012904344,0.4087,2364.2,2364.0,0.42302]
[1728012905941,0.4087,2364.2,2363.9,4.4318]
[1728012906247,0.4087,2364.2,2363.9,4.85484]
[1728012907146,3.2078,2364.3,2363.9,4.4318]
[1728012907338,3.2078,2364.3,2363.9,5.9518]
[1728012907534,3.2078,2364.3,2364.2,0.42299]
[1728012907738,0.812,2364.4,2364.3,0.42297]
[1728012907739,0.3905,2364.4,2364.3,0.42297]
[1728012909440,3.6264,2364.6,2364.3,0.42297]
[1728012909639,4.0489,2364.6,2364.4,0.423]
[1728012909841,4.0489,2364.6,2364.4,0.8332]
[1728012910042,2.7699,2364.6,2364.4,0.8332]
[1728012910242,4.0489,2364.6,2364.4,0.8332]
[1728012911748,0.4225,2364.6,2364.4,2.3532]